2CCN - Level 2 Cost Centre Name,,9CCN - Level 9 Cost Centre Name,9CCC - Level 9 Cost Centre Code,9AN - Level 9 Account Name,9AC - Level 9 Account Code,Date posted,Date of transaction,Merchant Name,Merchant City,Merchant State,Merchant Zip Code,Originating Account Name,Originating Account Number,MCC/SIC Code,MCC Description,Original Amount,Currency,Conversion Rate,Billed Amount,Debit Credit,Reference Number,Statement Cycle,Account Name
Gloucester City Council,23UE,Museum of Gloucester,MU002,General Supplies/Materials,3025,04/01/2019,03/01/2019,AMZN Mktp UK*MB5RO6FD4,800-279-6620,LUX,L2338,REDACTED,556*********2362,5942,BOOK STORES,9.95,Pound Sterling (826),1,9.95,Debit,5.52047E+22,02/02/2019,GLOUCESTER CC
Gloucester City Council,23UE,Museum of Gloucester,MU002,Catering Provisions,3103,09/01/2019,08/01/2019,TESCO STORES 6819,GLOUCESTER,GBR,GL1 1TP,REDACTED,556*********2362,5411,"GROCERY STORES, SUPERMARKETS",3.3,Pound Sterling (826),1,3.3,Debit,1.53778E+22,02/02/2019,GLOUCESTER CC
Gloucester City Council,23UE,Museum of Gloucester,MU002,General Supplies/Materials,3025,10/01/2019,09/01/2019,AMZN Mktp UK*MB6D30E94,800-279-6620,LUX,L2338,REDACTED,556*********2362,5942,BOOK STORES,11.7,Pound Sterling (826),1,11.7,Debit,5.52047E+22,02/02/2019,GLOUCESTER CC
Gloucester City Council,23UE,Museum of Gloucester,MU002,General Supplies/Materials,3025,10/01/2019,09/01/2019,AMZN Mktp UK*MB1KG9EL4,800-279-6620,LUX,L2338,REDACTED,556*********2362,5942,BOOK STORES,17.97,Pound Sterling (826),1,17.97,Debit,5.52047E+22,02/02/2019,GLOUCESTER CC
Gloucester City Council,23UE,Gloucester Life Museum,MU005,Catering Provisions,3103,11/01/2019,10/01/2019,ASDA SUPERSTORE,GLOUCESTER,GBR,GL1 1DS,REDACTED,556*********2362,5411,"GROCERY STORES, SUPERMARKETS",9.37,Pound Sterling (826),1,9.37,Debit,4.53778E+22,02/02/2019,GLOUCESTER CC
Gloucester City Council,23UE,Museum of Gloucester,MU002,General Supplies/Materials,3025,14/01/2019,11/01/2019,AMZN Mktp UK*MB26R1P84,800-279-6620,LUX,L2338,REDACTED,556*********2362,5942,BOOK STORES,17.7,Pound Sterling (826),1,17.7,Debit,5.52047E+22,02/02/2019,GLOUCESTER CC
Gloucester City Council,23UE,Museum of Gloucester,MU002,Public Transport - Staff,2402,14/01/2019,11/01/2019,GWR GLOUCESTER TO,GLOUCESTER,,GL1 1DE,REDACTED,556*********2362,4112,PASSENGER RAILWAYS,18,Pound Sterling (826),1,18,Debit,5.55044E+22,02/02/2019,GLOUCESTER CC
Gloucester City Council,23UE,Museum of Gloucester,MU002,Catering Provisions,3103,14/01/2019,12/01/2019,ASDA SUPERSTORE,GLOUCESTER,GBR,GL1 1DS,REDACTED,556*********2362,5411,"GROCERY STORES, SUPERMARKETS",14.48,Pound Sterling (826),1,14.48,Debit,1.53778E+22,02/02/2019,GLOUCESTER CC
Gloucester City Council,23UE,Gloucester Life Museum,MU005,Catering Provisions,3103,21/01/2019,20/01/2019,SAINSBURYS LOC (4304),GLOUCESTER,GBR,GL1 4JE,REDACTED,556*********2362,5411,"GROCERY STORES, SUPERMARKETS",3,Pound Sterling (826),1,3,Debit,6.54252E+22,02/02/2019,GLOUCESTER CC
Gloucester City Council,23UE,Museum of Gloucester,MU002,General Supplies/Materials,3025,23/01/2019,22/01/2019,WWW.PRESERVATIONEQUIPM,1379647400,,IP22 4HQ,REDACTED,556*********2362,4225,"PUBLIC WAREHOUSING-FARM PROD,REFRIGERATE",71.12,Pound Sterling (826),1,71.12,Debit,5.55044E+22,02/02/2019,GLOUCESTER CC
Gloucester City Council,23UE,Museum of Gloucester,MU002,General Supplies/Materials,3025,24/01/2019,23/01/2019,RAPID RACKING,CIRENCESTER,GBR,GL7 6BQ,REDACTED,556*********2362,5712,"FURNITURE, HOME FURNISHINGS AND EQUIPMENT STORES",57.6,Pound Sterling (826),1,57.6,Debit,1.52763E+22,02/02/2019,GLOUCESTER CC
Gloucester City Council,23UE,Museum of Gloucester,MU002,Public Transport - Staff,2402,28/01/2019,24/01/2019,PREMIER INN 44536540,EXETER,,EX1 1SG,REDACTED,556*********2362,3811,PREMIER INN,63.99,Pound Sterling (826),1,63.99,Debit,5.5542E+22,02/02/2019,GLOUCESTER CC
Gloucester City Council,23UE,Gloucester Life Museum,MU005,Catering Provisions,3103,28/01/2019,25/01/2019,ASDA SUPERSTORE,GLOUCESTER,GBR,GL1 1DS,REDACTED,556*********2362,5411,"GROCERY STORES, SUPERMARKETS",2.96,Pound Sterling (826),1,2.96,Debit,4.53778E+22,02/02/2019,GLOUCESTER CC
Gloucester City Council,23UE,Gloucester Life Museum,MU005,General Supplies/Materials,3025,28/01/2019,27/01/2019,AMZN Mktp UK*MB6XJ1RP4,800-279-6620,LUX,L2338,REDACTED,556*********2362,5942,BOOK STORES,28.45,Pound Sterling (826),1,28.45,Debit,5.52047E+22,02/02/2019,GLOUCESTER CC
Gloucester City Council,23UE,Museum of Gloucester,MU002,General Supplies/Materials,3025,28/01/2019,26/01/2019,IZ *THE WINKING OWL FA,Gloucester,GBR,GL11RP,REDACTED,556*********2362,5999,MISCELLANEOUS AND RETAIL STORES,15,Pound Sterling (826),1,15,Debit,5.51842E+22,02/02/2019,GLOUCESTER CC
Gloucester City Council,23UE,Museum of Gloucester,MU002,General Supplies/Materials,3025,28/01/2019,26/01/2019,THE WORKS,GLOUCESTER,,GL1 2NG,REDACTED,556*********2362,5310,DISCOUNT STORES,30,Pound Sterling (826),1,30,Debit,8.54815E+22,02/02/2019,GLOUCESTER CC
Gloucester City Council,23UE,Museum of Gloucester,MU002,Public Transport - Staff,2402,28/01/2019,26/01/2019,GWR GLOUCESTER TO,GLOUCESTER,,GL1 1DE,REDACTED,556*********2362,4112,PASSENGER RAILWAYS,64.8,Pound Sterling (826),1,64.8,Debit,5.55044E+22,02/02/2019,GLOUCESTER CC
Gloucester City Council,23UE,Museum of Gloucester,MU002,Catering Provisions,3103,31/01/2019,30/01/2019,ASDA SUPERSTORE,GLOUCESTER,GBR,GL1 1DS,REDACTED,556*********2362,5411,"GROCERY STORES, SUPERMARKETS",11.77,Pound Sterling (826),1,11.77,Debit,4.53778E+22,02/02/2019,GLOUCESTER CC
Gloucester City Council,23UE,Gloucester Life Museum,MU005,General Supplies/Materials,3025,31/01/2019,30/01/2019,B & Q 1179,GLOUCESTER,,GL12SG,REDACTED,556*********2362,5211,LUMBER AND BUILDING MATERIALS STORES,13.44,Pound Sterling (826),1,13.44,Debit,8.54815E+22,02/02/2019,GLOUCESTER CC
Gloucester City Council,23UE,Managing Director & Directors,MT001,Advertising & Publicity,3404,15/01/2019,14/01/2019,FACEBK *3GV5LJWJW2,fb.me/ads,,,REDACTED,471*********7903,7311,ADVERTISING SERVICES,174.19,Pound Sterling (826),1,174.19,Debit,7.43132E+22,02/02/2019,GLOUCESTER CC
Gloucester City Council,23UE,Civic Admin & Hospitality,DS001,Equipment and Furniture,3001,24/01/2019,23/01/2019,FLAGS BY MRFLAG,4.41793E+11,,,REDACTED,471*********7903,5311,DEPARTMENT STORES,85.2,Pound Sterling (826),1,85.2,Debit,7.49989E+22,02/02/2019,GLOUCESTER CC
Gloucester City Council,23UE,Civic Admin & Hospitality,DS001,Mileage and Travel Allowances,2401,25/01/2019,24/01/2019,TRAINLINE,LONDON,,,REDACTED,471*********7903,4112,PASSENGER RAILWAYS,97.6,Pound Sterling (826),1,97.6,Debit,7.49989E+22,02/02/2019,GLOUCESTER CC
Gloucester City Council,23UE,Civic Admin & Hospitality,DS001,Mileage and Travel Allowances,2401,25/01/2019,24/01/2019,TRAINLINE,LONDON,,,REDACTED,471*********7903,4112,PASSENGER RAILWAYS,27.25,Pound Sterling (826),1,27.25,Debit,7.49989E+22,02/02/2019,GLOUCESTER CC
Gloucester City Council,23UE,Managing Director & Directors,MT001,Stationery,3201,07/01/2019,04/01/2019,AMZN Mktp UK*MB1WQ4LJ4,800-279-6620,LUX,L2338,REDACTED,556*********1418,5942,BOOK STORES,145,Pound Sterling (826),1,145,Debit,5.52047E+22,02/02/2019,GLOUCESTER CC
Gloucester City Council,23UE,Managing Director & Directors,MT001,Stationery,3201,10/01/2019,09/01/2019,AMZN Mktp UK*MB1Z84E54,800-279-6620,LUX,L2338,REDACTED,556*********1418,5942,BOOK STORES,199,Pound Sterling (826),1,199,Debit,5.52047E+22,02/02/2019,GLOUCESTER CC
Gloucester City Council,23UE,Managing Director & Directors,MT001,Public Transport - Staff,2402,29/01/2019,28/01/2019,Trainline,London,GBR,1445,REDACTED,556*********1418,4112,PASSENGER RAILWAYS,52.6,Pound Sterling (826),1,52.6,Debit,8.51301E+22,02/02/2019,GLOUCESTER CC
Gloucester City Council,23UE,Managing Director & Directors,MT001,Public Transport - Staff,2402,29/01/2019,28/01/2019,Trainline,London,GBR,1445,REDACTED,556*********1418,4112,PASSENGER RAILWAYS,99.1,Pound Sterling (826),1,99.1,Debit,8.51301E+22,02/02/2019,GLOUCESTER CC
Gloucester City Council,23UE,Countryside Unit,EP003,Vehicle Repairs and Maintenance,2103,09/01/2019,08/01/2019,HALFORDS 0749,GLOUCESTER,GBR,GL4 3EA,REDACTED,556*********6734,5940,BICYCLE SHOPS-SALES AND SERVICE,27.98,Pound Sterling (826),1,27.98,Debit,3.53778E+22,02/02/2019,GLOUCESTER CC
Gloucester City Council,23UE,Countryside Unit,EP003,Professional Advice/Consultants Fees,3952,16/01/2019,15/01/2019,PAYPAL *GLOS ORCH T,35314369001,GBR,TW91EH,REDACTED,556*********6734,8398,CHARITABLE AND SOCIAL SERVICE ORGANIZATIONS,25,Pound Sterling (826),1,25,Debit,8.51301E+22,02/02/2019,GLOUCESTER CC
Gloucester City Council,23UE,Countryside Unit,EP003,Operative Clothing Allowances,502,22/01/2019,21/01/2019,AMZN Mktp UK*MB1410SW4,800-279-6620,LUX,L2338,REDACTED,556*********6734,5942,BOOK STORES,3.29,Pound Sterling (826),1,3.29,Debit,5.52047E+22,02/02/2019,GLOUCESTER CC
Gloucester City Council,23UE,Countryside Unit,EP003,General Supplies/Materials,3025,23/01/2019,21/01/2019,PAYPAL *DIGITECHTRA,35314369001,GBR,TW91EH,REDACTED,556*********6734,5719,MISCELLANEOUS HOUSE FURNISHING SPECIALITY STORES,22.75,Pound Sterling (826),1,22.75,Debit,8.51301E+22,02/02/2019,GLOUCESTER CC
Gloucester City Council,23UE,Guildhall Bar and Caf�,GH005,Catering Provisions,3103,18/01/2019,17/01/2019,ICELAND,GLOUCESTER,GBR,GL1 1SA,REDACTED,556*********1155,5411,"GROCERY STORES, SUPERMARKETS",6,Pound Sterling (826),1,6,Debit,2.53778E+22,02/02/2019,GLOUCESTER CC
Gloucester City Council,23UE,Guildhall Bar and Caf�,GH005,Catering Provisions,3103,21/01/2019,19/01/2019,ICELAND,GLOUCESTER,GBR,GL1 1SA,REDACTED,556*********1155,5411,"GROCERY STORES, SUPERMARKETS",2,Pound Sterling (826),1,2,Debit,9.53778E+22,02/02/2019,GLOUCESTER CC
Gloucester City Council,23UE,Guildhall Bar and Caf�,GH005,Catering Provisions,3103,22/01/2019,21/01/2019,SAINSBURYS SACAT 0771,GLOUCESTER,GBR,GL1 2AG,REDACTED,556*********1155,5411,"GROCERY STORES, SUPERMARKETS",11.95,Pound Sterling (826),1,11.95,Debit,2.54252E+22,02/02/2019,GLOUCESTER CC
Gloucester City Council,23UE,Guildhall Bar and Caf�,GH005,Catering Provisions,3103,22/01/2019,21/01/2019,ICELAND,GLOUCESTER,GBR,GL1 1SA,REDACTED,556*********1155,5411,"GROCERY STORES, SUPERMARKETS",4,Pound Sterling (826),1,4,Debit,2.53778E+22,02/02/2019,GLOUCESTER CC
Gloucester City Council,23UE,Guildhall Bar and Caf�,GH005,Catering Provisions,3103,23/01/2019,22/01/2019,ICELAND,GLOUCESTER,GBR,GL1 1SA,REDACTED,556*********1155,5411,"GROCERY STORES, SUPERMARKETS",2,Pound Sterling (826),1,2,Debit,2.53778E+22,02/02/2019,GLOUCESTER CC
Gloucester City Council,23UE,Guildhall Bar and Caf�,GH005,Catering Provisions,3103,24/01/2019,23/01/2019,ICELAND,GLOUCESTER,GBR,GL1 1SA,REDACTED,556*********1155,5411,"GROCERY STORES, SUPERMARKETS",3,Pound Sterling (826),1,3,Debit,2.53778E+22,02/02/2019,GLOUCESTER CC
Gloucester City Council,23UE,Guildhall Bar and Caf�,GH005,Catering Provisions,3103,28/01/2019,25/01/2019,SAINSBURYS SACAT 0608,GLOUCESTER,GBR,GL4 3RT,REDACTED,556*********1155,5411,"GROCERY STORES, SUPERMARKETS",23.55,Pound Sterling (826),1,23.55,Debit,2.54252E+22,02/02/2019,GLOUCESTER CC
Gloucester City Council,23UE,Guildhall Bar and Caf�,GH005,Catering Provisions,3103,28/01/2019,25/01/2019,BOOKER LIMITED GLOUCES,GLOUCESTER,GBR,GL4 3RT,REDACTED,556*********1155,5811,CATERERS,196.65,Pound Sterling (826),1,196.65,Debit,5.51842E+22,02/02/2019,GLOUCESTER CC
Gloucester City Council,23UE,Guildhall Bar and Caf�,GH005,Catering Provisions,3103,28/01/2019,26/01/2019,ALDI 96 775,GLOUCESTER,,GL1 5BJ,REDACTED,556*********1155,5411,"GROCERY STORES, SUPERMARKETS",8.88,Pound Sterling (826),1,8.88,Debit,8.54815E+22,02/02/2019,GLOUCESTER CC
Gloucester City Council,23UE,Guildhall Bar and Caf�,GH005,Catering Provisions,3103,28/01/2019,26/01/2019,ASDA SUPERSTORE,GLOUCESTER,GBR,GL1 1DS,REDACTED,556*********1155,5411,"GROCERY STORES, SUPERMARKETS",60.47,Pound Sterling (826),1,60.47,Debit,1.53778E+22,02/02/2019,GLOUCESTER CC
Gloucester City Council,23UE,Guildhall Bar and Caf�,GH005,Catering Provisions,3103,29/01/2019,28/01/2019,ASDA SUPERSTORE,GLOUCESTER,GBR,GL1 1DS,REDACTED,556*********1155,5411,"GROCERY STORES, SUPERMARKETS",51.51,Pound Sterling (826),1,51.51,Debit,4.53778E+22,02/02/2019,GLOUCESTER CC
Gloucester City Council,23UE,Guildhall Bar and Caf�,GH005,Catering Provisions,3103,29/01/2019,28/01/2019,MARKS&SPENCER PLC,GLOUCESTER,GBR,GL1 1PH,REDACTED,556*********1155,5411,"GROCERY STORES, SUPERMARKETS",4,Pound Sterling (826),1,4,Debit,4.53778E+22,02/02/2019,GLOUCESTER CC
Gloucester City Council,23UE,Gloucester Life Museum,MU005,Professional Membership & Subscriptions,3403,08/01/2019,07/01/2019,AMZN Mktp UK*MB96O2TT4,800-279-6620,LUX,L2338,REDACTED,556*********8997,5942,BOOK STORES,24.95,Pound Sterling (826),1,24.95,Debit,5.52047E+22,02/02/2019,GLOUCESTER CC
Gloucester City Council,23UE,Gloucester Life Museum,MU005,Professional Membership & Subscriptions,3403,08/01/2019,07/01/2019,WWW.SIGN-HOLDERS.CO.UK,SOUTHAMPTON,,SO32 2SA,REDACTED,556*********8997,5999,MISCELLANEOUS AND RETAIL STORES,194.98,Pound Sterling (826),1,194.98,Debit,5.5542E+22,02/02/2019,GLOUCESTER CC
Gloucester City Council,23UE,Shopmobility,SM001,Equipment and Furniture,3001,08/01/2019,07/01/2019,WWW.INSTANTPRINT.C,01709 382202,,S63 5DR,REDACTED,556*********8997,7338,QUICK-COPY AND REPRODUCTION SERVICES,41.89,Pound Sterling (826),1,41.89,Debit,8.54815E+22,02/02/2019,GLOUCESTER CC
Gloucester City Council,23UE,Gloucester Life Museum,MU005,Professional Membership & Subscriptions,3403,08/01/2019,07/01/2019,WWW.UKPOS.COM,INTERNET,GBR,SK6 2TD,REDACTED,556*********8997,5943,"STATIONERY, OFFICE AND SCHOOL SUPPLY STO",61.82,Pound Sterling (826),1,61.82,Debit,5.27248E+21,02/02/2019,GLOUCESTER CC
Gloucester City Council,23UE,Gloucester Life Museum,MU005,Professional Membership & Subscriptions,3403,09/01/2019,08/01/2019,AMZN Mktp UK*MB7769T24,800-279-6620,LUX,L2338,REDACTED,556*********8997,5942,BOOK STORES,77.99,Pound Sterling (826),1,77.99,Debit,5.52047E+22,02/02/2019,GLOUCESTER CC
Gloucester City Council,23UE,Gloucester Guildhall,GH001,Public Transport - Staff,2402,16/01/2019,14/01/2019,Trainline,London,GBR,1445,REDACTED,556*********8997,4112,PASSENGER RAILWAYS,18.3,Pound Sterling (826),1,18.3,Debit,8.51301E+22,02/02/2019,GLOUCESTER CC
Gloucester City Council,23UE,Guildhall Events,GH002,Advertising & Publicity,3404,21/01/2019,18/01/2019,FACEBK *S4K92KE9X2,fb.me/ads,IRL,UNKNOWN,REDACTED,556*********8997,7311,ADVERTISING SERVICES,98.93,Pound Sterling (826),1,98.93,Debit,5.52047E+22,02/02/2019,GLOUCESTER CC
Gloucester City Council,23UE,Tourist Information Centre,TI002,Equipment and Furniture,3001,25/01/2019,24/01/2019,ARGOS RETAIL GROUP,INTERNET,,MK92NW,REDACTED,556*********8997,5310,DISCOUNT STORES,24.99,Pound Sterling (826),1,24.99,Debit,8.54815E+22,02/02/2019,GLOUCESTER CC
Gloucester City Council,23UE,Gloucester Guildhall,GH001,General Supplies/Materials,3025,29/01/2019,28/01/2019,B & Q 1237,LEEDS,,LS110BD,REDACTED,556*********8997,5211,LUMBER AND BUILDING MATERIALS STORES,28.22,Pound Sterling (826),1,28.22,Debit,8.54815E+22,02/02/2019,GLOUCESTER CC
Gloucester City Council,23UE,Docks Complex - Services,AM006,Building Repairs and Maintenance,1001,15/01/2019,14/01/2019,TIMPSON LTD,GLOUCESTER,,GL11RW,REDACTED,556*********4301,7251,"SHOE REPAIR SHOPS, SHOE SHINE PARLORS & HAT CLEANING SHOPS",16,Pound Sterling (826),1,16,Debit,8.54815E+22,02/02/2019,GLOUCESTER CC
Gloucester City Council,23UE,Docks Complex - Services,AM006,General Supplies/Materials,3025,15/01/2019,14/01/2019,PAYPAL *BITSANDBOBS,35314369001,GBR,TW91EH,REDACTED,556*********4301,5251,HARDWARE STORES,99,Pound Sterling (826),1,99,Debit,8.51301E+22,02/02/2019,GLOUCESTER CC
Gloucester City Council,23UE,Docks Complex - Services,AM006,General Supplies/Materials,3025,29/01/2019,28/01/2019,PAYPAL *CLEANTEC,35314369001,GBR,TW91EH,REDACTED,556*********4301,5251,HARDWARE STORES,28.99,Pound Sterling (826),1,28.99,Debit,8.51301E+22,02/02/2019,GLOUCESTER CC
Gloucester City Council,23UE,Docks Complex - Services,AM006,General Supplies/Materials,3025,29/01/2019,28/01/2019,PAYPAL *GEMTOOLHIRE,35314369001,GBR,TW91EH,REDACTED,556*********4301,7399,BUSINESS SERVICES NOT ELSEWHERE CLASSIFIED,51.15,Pound Sterling (826),1,51.15,Debit,8.51301E+22,02/02/2019,GLOUCESTER CC
Gloucester City Council,23UE,Docks Complex - Services,AM006,Hospitality & Refreshments,3104,30/01/2019,29/01/2019,TESCO STORES 6819,GLOUCESTER,GBR,GL1 1TP,REDACTED,556*********4301,5411,"GROCERY STORES, SUPERMARKETS",7.81,Pound Sterling (826),1,7.81,Debit,1.53778E+22,02/02/2019,GLOUCESTER CC
Gloucester City Council,23UE,Docks Complex - Services,AM006,General Supplies/Materials,3025,16/01/2019,14/01/2019,DENMANS ELECTRICAL,GLOUCESTER,,GL1 3QA,REDACTED,556*********6128,5065,ELECTRICAL PARTS AND EQUIPMENT,28.66,Pound Sterling (826),1,28.66,Debit,8.54815E+22,02/02/2019,GLOUCESTER CC
Gloucester City Council,23UE,Docks Complex - Services,AM006,General Supplies/Materials,3025,23/01/2019,22/01/2019,SCREWFIX DIRECT,YEOVIL,,BA228RT,REDACTED,556*********6128,5211,LUMBER AND BUILDING MATERIALS STORES,52.99,Pound Sterling (826),1,52.99,Debit,8.54815E+22,02/02/2019,GLOUCESTER CC
Gloucester City Council,23UE,Docks Complex - Services,AM006,Hospitality & Refreshments,3104,24/01/2019,23/01/2019,SAINSBURYS SACAT 2221,GLOUCESTER,GBR,GL2 5SA,REDACTED,556*********6128,5411,"GROCERY STORES, SUPERMARKETS",17,Pound Sterling (826),1,17,Debit,4.54252E+22,02/02/2019,GLOUCESTER CC
Gloucester City Council,23UE,Members Support,DS002,Mileage and Travel Allowances,2401,07/01/2019,04/01/2019,Trainline,London,GBR,1445,REDACTED,556*********4234,4112,PASSENGER RAILWAYS,29.85,Pound Sterling (826),1,29.85,Debit,8.51301E+22,02/02/2019,GLOUCESTER CC
Gloucester City Council,23UE,Housing Services,HS001,Mileage and Travel Allowances,2401,08/01/2019,07/01/2019,Trainline,London,GBR,1445,REDACTED,556*********4234,4112,PASSENGER RAILWAYS,186.2,Pound Sterling (826),1,186.2,Debit,8.51301E+22,02/02/2019,GLOUCESTER CC
Gloucester City Council,23UE,Housing Services,HS001,Printing External,3203,08/01/2019,07/01/2019,Amazon.co.uk*MB7FQ3TY4,AMAZON.CO.UK,LUX,L2338,REDACTED,556*********4234,5969,ALL OTHER DIRECT MARKETERS,21.99,Pound Sterling (826),1,21.99,Debit,5.52047E+22,02/02/2019,GLOUCESTER CC
Gloucester City Council,23UE,Development Management,PL003,Mileage and Travel Allowances,2401,15/01/2019,14/01/2019,Trainline,London,GBR,1445,REDACTED,556*********4234,4112,PASSENGER RAILWAYS,96,Pound Sterling (826),1,96,Debit,8.51301E+22,02/02/2019,GLOUCESTER CC
Gloucester City Council,23UE,Council Streetcare Team,NE002,Mileage and Travel Allowances,2401,15/01/2019,14/01/2019,Trainline,London,GBR,1445,REDACTED,556*********4234,4112,PASSENGER RAILWAYS,141.1,Pound Sterling (826),1,141.1,Debit,8.51301E+22,02/02/2019,GLOUCESTER CC
Gloucester City Council,23UE,Council Streetcare Team,NE002,Mileage and Travel Allowances,2401,23/01/2019,22/01/2019,Trainline,London,GBR,1445,REDACTED,556*********4234,4112,PASSENGER RAILWAYS,7.65,Pound Sterling (826),1,7.65,Debit,8.51301E+22,02/02/2019,GLOUCESTER CC
Gloucester City Council,23UE,Council Streetcare Team,NE002,Mileage and Travel Allowances,2401,30/01/2019,29/01/2019,Trainline,London,GBR,1445,REDACTED,556*********4234,4112,PASSENGER RAILWAYS,18.75,Pound Sterling (826),1,18.75,Debit,8.51301E+22,02/02/2019,GLOUCESTER CC
Gloucester City Council,23UE,Council Streetcare Team,NE002,Mileage and Travel Allowances,2401,30/01/2019,29/01/2019,Trainline,London,GBR,1445,REDACTED,556*********4234,4112,PASSENGER RAILWAYS,42.5,Pound Sterling (826),1,42.5,Debit,8.51301E+22,02/02/2019,GLOUCESTER CC
Gloucester City Council,23UE,Economic Development,ED001,External Training Course Fees,550,30/01/2019,29/01/2019,EB *GLOUCESTERSHIRE TO,801-413-7200,IRL,DUBLIN 8,REDACTED,556*********4234,7399,BUSINESS SERVICES NOT ELSEWHERE CLASSIFIED,20,Pound Sterling (826),1,20,Debit,1.52763E+22,02/02/2019,GLOUCESTER CC
Gloucester City Council,23UE,Development Management,PL003,Mileage and Travel Allowances,2401,31/01/2019,30/01/2019,Trainline,London,GBR,1445,REDACTED,556*********4234,4112,PASSENGER RAILWAYS,96,Pound Sterling (826),1,96,Debit,8.51301E+22,02/02/2019,GLOUCESTER CC
Gloucester City Council,23UE,Council Streetcare Team,NE002,Mileage and Travel Allowances,2401,31/01/2019,30/01/2019,Trainline,London,GBR,1445,REDACTED,556*********4234,4112,PASSENGER RAILWAYS,134.8,Pound Sterling (826),1,134.8,Debit,8.51301E+22,02/02/2019,GLOUCESTER CC
Gloucester City Council,23UE,Economic Development,ED001,Public Transport - Staff,2402,31/01/2019,30/01/2019,Trainline,London,GBR,1445,REDACTED,556*********4234,4112,PASSENGER RAILWAYS,370.9,Pound Sterling (826),1,370.9,Debit,8.51301E+22,02/02/2019,GLOUCESTER CC
Gloucester City Council,23UE,Council Streetcare Team,NE002,Mileage and Travel Allowances,2401,01/02/2019,31/01/2019,Trainline,London,GBR,1445,REDACTED,556*********4234,4112,PASSENGER RAILWAYS,62.1,Pound Sterling (826),1,62.1,Debit,8.51301E+22,02/02/2019,GLOUCESTER CC
Gloucester City Council,23UE,Head of Policy and Resources,MT004,Public Transport - Staff,2402,07/01/2019,06/01/2019,Trainline,London,GBR,1445,REDACTED,556*********3029,4112,PASSENGER RAILWAYS,99.5,Pound Sterling (826),1,99.5,Debit,8.51301E+22,02/02/2019,GLOUCESTER CC
Gloucester City Council,23UE,Head of Policy and Resources,MT004,Public Transport - Staff,2402,09/01/2019,08/01/2019,Trainline,London,GBR,1445,REDACTED,556*********3029,4112,PASSENGER RAILWAYS,99.5,Pound Sterling (826),1,99.5,Debit,8.51301E+22,02/02/2019,GLOUCESTER CC
Gloucester City Council,23UE,Community Safety Projects,CS001,General Supplies/Materials,3025,17/01/2019,16/01/2019,PAYPAL *SIGNTRADESU,35314369001,GBR,ME142BJ,REDACTED,556*********3029,7399,BUSINESS SERVICES NOT ELSEWHERE CLASSIFIED,52.2,Pound Sterling (826),1,52.2,Debit,8.53534E+22,02/02/2019,GLOUCESTER CC
Gloucester City Council,23UE,Council Streetcare Team,NE002,General Supplies/Materials,3025,23/01/2019,22/01/2019,CHARTERED INST OF,NORTHAMPTON,,NN1 1SX,REDACTED,556*********3029,8999,PROFESSIONAL SERVICES NOT ELSEWHERE CLASSIFIED,50,Pound Sterling (826),1,50,Debit,5.55044E+22,02/02/2019,GLOUCESTER CC
Gloucester City Council,23UE,Housing Services,HS001,B&B Payments,1303,03/01/2019,02/01/2019,TRAVELODGE GB0000,THAME,,OX9 3AT,REDACTED,556*********6959,3615,TRAVELODGE,82,Pound Sterling (826),1,82,Debit,5.55044E+22,02/02/2019,GLOUCESTER CC
Gloucester City Council,23UE,Housing Services,HS001,B&B Payments,1303,03/01/2019,02/01/2019,TRAVELODGE GB0000,THAME,,OX9 3AT,REDACTED,556*********6959,3615,TRAVELODGE,215,Pound Sterling (826),1,215,Debit,5.55044E+22,02/02/2019,GLOUCESTER CC
Gloucester City Council,23UE,Housing Services,HS001,B&B Payments,1303,04/01/2019,03/01/2019,TRAVELODGE GB0000,THAME,,OX9 3AT,REDACTED,556*********6959,3615,TRAVELODGE,174,Pound Sterling (826),1,174,Debit,5.55044E+22,02/02/2019,GLOUCESTER CC
Gloucester City Council,23UE,Housing Services,HS001,B&B Payments,1303,07/01/2019,04/01/2019,TRAVELODGE GB0000,THAME,,OX9 3AT,REDACTED,556*********6959,3615,TRAVELODGE,233,Pound Sterling (826),1,233,Debit,5.55044E+22,02/02/2019,GLOUCESTER CC
Gloucester City Council,23UE,Housing Services,HS001,B&B Payments,1303,08/01/2019,07/01/2019,TRAVELODGE GB0000,THAME,,OX9 3AT,REDACTED,556*********6959,3615,TRAVELODGE,150,Pound Sterling (826),1,150,Debit,5.55044E+22,02/02/2019,GLOUCESTER CC
Gloucester City Council,23UE,Housing Services,HS001,B&B Payments,1303,08/01/2019,07/01/2019,TRAVELODGE GB0000,THAME,,OX9 3AT,REDACTED,556*********6959,3615,TRAVELODGE,50,Pound Sterling (826),1,50,Debit,5.55044E+22,02/02/2019,GLOUCESTER CC
Gloucester City Council,23UE,Housing Services,HS001,B&B Payments,1303,09/01/2019,08/01/2019,TRAVELODGE GB0000,THAME,,OX9 3AT,REDACTED,556*********6959,3615,TRAVELODGE,320,Pound Sterling (826),1,320,Debit,5.55044E+22,02/02/2019,GLOUCESTER CC
Gloucester City Council,23UE,Housing Services,HS001,B&B Payments,1303,09/01/2019,08/01/2019,TRAVELODGE GB0000,THAME,,OX9 3AT,REDACTED,556*********6959,3615,TRAVELODGE,50,Pound Sterling (826),1,50,Debit,5.55044E+22,02/02/2019,GLOUCESTER CC
Gloucester City Council,23UE,Housing Services,HS001,B&B Payments,1303,10/01/2019,09/01/2019,TRAVELODGE GB0000,THAME,,OX9 3AT,REDACTED,556*********6959,3615,TRAVELODGE,270,Pound Sterling (826),1,270,Debit,5.55044E+22,02/02/2019,GLOUCESTER CC
Gloucester City Council,23UE,Housing Services,HS001,B&B Payments,1303,10/01/2019,09/01/2019,TRAVELODGE GB0000,THAME,,OX9 3AT,REDACTED,556*********6959,3615,TRAVELODGE,100,Pound Sterling (826),1,100,Debit,5.55044E+22,02/02/2019,GLOUCESTER CC
Gloucester City Council,23UE,Housing Services,HS001,B&B Payments,1303,10/01/2019,09/01/2019,TRAVELODGE GB0000,THAME,,OX9 3AT,REDACTED,556*********6959,3615,TRAVELODGE,100,Pound Sterling (826),1,100,Debit,5.55044E+22,02/02/2019,GLOUCESTER CC
Gloucester City Council,23UE,Housing Services,HS001,Mileage and Travel Allowances,2401,11/01/2019,10/01/2019,Trainline,London,GBR,1445,REDACTED,556*********6959,4112,PASSENGER RAILWAYS,20.75,Pound Sterling (826),1,20.75,Debit,8.51301E+22,02/02/2019,GLOUCESTER CC
Gloucester City Council,23UE,Housing Services,HS001,B&B Payments,1303,11/01/2019,10/01/2019,TRAVELODGE GB0000,THAME,,OX9 3AT,REDACTED,556*********6959,3615,TRAVELODGE,181,Pound Sterling (826),1,181,Debit,5.55044E+22,02/02/2019,GLOUCESTER CC
Gloucester City Council,23UE,Housing Services,HS001,B&B Payments,1303,11/01/2019,10/01/2019,TRAVELODGE GB0000,THAME,,OX9 3AT,REDACTED,556*********6959,3615,TRAVELODGE,270,Pound Sterling (826),1,270,Debit,5.55044E+22,02/02/2019,GLOUCESTER CC
Gloucester City Council,23UE,Housing Services,HS001,B&B Payments,1303,14/01/2019,11/01/2019,PREMIER INN 44537895,GLOUCESTER,,GL1 5SF,REDACTED,556*********6959,3811,PREMIER INN,188.5,Pound Sterling (826),1,188.5,Debit,5.5542E+22,02/02/2019,GLOUCESTER CC
Gloucester City Council,23UE,Housing Services,HS001,B&B Payments,1303,15/01/2019,14/01/2019,TRAVELODGE GB0000,THAME,,OX9 3AT,REDACTED,556*********6959,3615,TRAVELODGE,50,Pound Sterling (826),1,50,Debit,5.55044E+22,02/02/2019,GLOUCESTER CC
Gloucester City Council,23UE,Housing Services,HS001,B&B Payments,1303,15/01/2019,14/01/2019,TRAVELODGE GB0000,THAME,,OX9 3AT,REDACTED,556*********6959,3615,TRAVELODGE,100,Pound Sterling (826),1,100,Debit,5.55044E+22,02/02/2019,GLOUCESTER CC
Gloucester City Council,23UE,Housing Services,HS001,B&B Payments,1303,15/01/2019,14/01/2019,TRAVELODGE GB0000,THAME,,OX9 3AT,REDACTED,556*********6959,3615,TRAVELODGE,204,Pound Sterling (826),1,204,Debit,5.55044E+22,02/02/2019,GLOUCESTER CC
Gloucester City Council,23UE,Housing Services,HS001,B&B Payments,1303,15/01/2019,14/01/2019,TRAVELODGE GB0000,THAME,,OX9 3AT,REDACTED,556*********6959,3615,TRAVELODGE,50,Pound Sterling (826),1,50,Debit,5.55044E+22,02/02/2019,GLOUCESTER CC
Gloucester City Council,23UE,Housing Services,HS001,B&B Payments,1303,15/01/2019,14/01/2019,TRAVELODGE GB0000,THAME,,OX9 3AT,REDACTED,556*********6959,3615,TRAVELODGE,100,Pound Sterling (826),1,100,Debit,5.55044E+22,02/02/2019,GLOUCESTER CC
Gloucester City Council,23UE,Housing Services,HS001,B&B Payments,1303,16/01/2019,15/01/2019,TRAVELODGE GB0000,THAME,,OX9 3AT,REDACTED,556*********6959,3615,TRAVELODGE,454,Pound Sterling (826),1,454,Debit,5.55044E+22,02/02/2019,GLOUCESTER CC
Gloucester City Council,23UE,Housing Services,HS001,B&B Payments,1303,17/01/2019,16/01/2019,TRAVELODGE GB0000,THAME,,OX9 3AT,REDACTED,556*********6959,3615,TRAVELODGE,233,Pound Sterling (826),1,233,Debit,5.55044E+22,02/02/2019,GLOUCESTER CC
Gloucester City Council,23UE,Housing Services,HS001,B&B Payments,1303,17/01/2019,16/01/2019,TRAVELODGE GB0000,THAME,,OX9 3AT,REDACTED,556*********6959,3615,TRAVELODGE,-150,Pound Sterling (826),1,-150,Credit,5.55044E+22,02/02/2019,GLOUCESTER CC
Gloucester City Council,23UE,Housing Services,HS001,B&B Payments,1303,18/01/2019,17/01/2019,TRAVELODGE GB0000,THAME,,OX9 3AT,REDACTED,556*********6959,3615,TRAVELODGE,233,Pound Sterling (826),1,233,Debit,5.55044E+22,02/02/2019,GLOUCESTER CC
Gloucester City Council,23UE,Housing Services,HS001,External Training Course Fees,550,21/01/2019,18/01/2019,EB *BID WRITING THE BA,801-413-7200,IRL,DUBLIN 8,REDACTED,556*********6959,7399,BUSINESS SERVICES NOT ELSEWHERE CLASSIFIED,190,Pound Sterling (826),1,190,Debit,1.52763E+22,02/02/2019,GLOUCESTER CC
Gloucester City Council,23UE,Housing Services,HS001,B&B Payments,1303,23/01/2019,22/01/2019,TRAVELODGE GB0000,THAME,,OX9 3AT,REDACTED,556*********6959,3615,TRAVELODGE,100,Pound Sterling (826),1,100,Debit,5.55044E+22,02/02/2019,GLOUCESTER CC
Gloucester City Council,23UE,Housing Services,HS001,B&B Payments,1303,23/01/2019,22/01/2019,TRAVELODGE GB0000,THAME,,OX9 3AT,REDACTED,556*********6959,3615,TRAVELODGE,112,Pound Sterling (826),1,112,Debit,5.55044E+22,02/02/2019,GLOUCESTER CC
Gloucester City Council,23UE,Housing Services,HS001,B&B Payments,1303,23/01/2019,22/01/2019,TRAVELODGE GB0000,THAME,,OX9 3AT,REDACTED,556*********6959,3615,TRAVELODGE,50,Pound Sterling (826),1,50,Debit,5.55044E+22,02/02/2019,GLOUCESTER CC
Gloucester City Council,23UE,Housing Services,HS001,B&B Payments,1303,24/01/2019,23/01/2019,TRAVELODGE GB0000,THAME,,OX9 3AT,REDACTED,556*********6959,3615,TRAVELODGE,50,Pound Sterling (826),1,50,Debit,5.55044E+22,02/02/2019,GLOUCESTER CC
Gloucester City Council,23UE,Housing Services,HS001,B&B Payments,1303,25/01/2019,24/01/2019,TRAVELODGE GB0000,THAME,,OX9 3AT,REDACTED,556*********6959,3615,TRAVELODGE,246,Pound Sterling (826),1,246,Debit,5.55044E+22,02/02/2019,GLOUCESTER CC
Gloucester City Council,23UE,Housing Services,HS001,B&B Payments,1303,25/01/2019,24/01/2019,TRAVELODGE GB0000,THAME,,OX9 3AT,REDACTED,556*********6959,3615,TRAVELODGE,205,Pound Sterling (826),1,205,Debit,5.55044E+22,02/02/2019,GLOUCESTER CC
Gloucester City Council,23UE,Housing Services,HS001,B&B Payments,1303,25/01/2019,24/01/2019,TRAVELODGE GB0000,THAME,,OX9 3AT,REDACTED,556*********6959,3615,TRAVELODGE,205,Pound Sterling (826),1,205,Debit,5.55044E+22,02/02/2019,GLOUCESTER CC
Gloucester City Council,23UE,Housing Services,HS001,B&B Payments,1303,28/01/2019,25/01/2019,TRAVELODGE GB0000,THAME,,OX9 3AT,REDACTED,556*********6959,3615,TRAVELODGE,213,Pound Sterling (826),1,213,Debit,5.55044E+22,02/02/2019,GLOUCESTER CC
Gloucester City Council,23UE,Housing Services,HS001,B&B Payments,1303,29/01/2019,28/01/2019,TRAVELODGE GB0000,THAME,,OX9 3AT,REDACTED,556*********6959,3615,TRAVELODGE,117,Pound Sterling (826),1,117,Debit,5.55044E+22,02/02/2019,GLOUCESTER CC
Gloucester City Council,23UE,Housing Services,HS001,B&B Payments,1303,29/01/2019,28/01/2019,TRAVELODGE GB0000,THAME,,OX9 3AT,REDACTED,556*********6959,3615,TRAVELODGE,117,Pound Sterling (826),1,117,Debit,5.55044E+22,02/02/2019,GLOUCESTER CC
Gloucester City Council,23UE,Housing Services,HS001,B&B Payments,1303,29/01/2019,28/01/2019,TRAVELODGE GB0000,THAME,,OX9 3AT,REDACTED,556*********6959,3615,TRAVELODGE,71,Pound Sterling (826),1,71,Debit,5.55044E+22,02/02/2019,GLOUCESTER CC
Gloucester City Council,23UE,Housing Services,HS001,B&B Payments,1303,31/01/2019,30/01/2019,TRAVELODGE GB0000,THAME,,OX9 3AT,REDACTED,556*********6959,3615,TRAVELODGE,279,Pound Sterling (826),1,279,Debit,5.55044E+22,02/02/2019,GLOUCESTER CC
Gloucester City Council,23UE,Housing Services,HS001,B&B Payments,1303,31/01/2019,30/01/2019,TRAVELODGE GB0000,THAME,,OX9 3AT,REDACTED,556*********6959,3615,TRAVELODGE,108,Pound Sterling (826),1,108,Debit,5.55044E+22,02/02/2019,GLOUCESTER CC
Gloucester City Council,23UE,Housing Services,HS001,B&B Payments,1303,31/01/2019,29/01/2019,TRAVELODGE GB0821,CHELTENHAM,,GL51 6TA,REDACTED,556*********6959,3615,TRAVELODGE,115.5,Pound Sterling (826),1,115.5,Debit,5.55044E+22,02/02/2019,GLOUCESTER CC
Gloucester City Council,23UE,Housing Services,HS001,B&B Payments,1303,01/02/2019,31/01/2019,TRAVELODGE GB0000,THAME,,OX9 3AT,REDACTED,556*********6959,3615,TRAVELODGE,181,Pound Sterling (826),1,181,Debit,5.55044E+22,02/02/2019,GLOUCESTER CC
Gloucester City Council,23UE,Guildhall Events,GH002,Advertising & Publicity,3404,21/01/2019,18/01/2019,MAILCHIMP *MONTHLY,MAILCHIMP.COM,GA,30308,REDACTED,556*********8256,5968,CONTINUITY/SUBSCRIPTION MERCHANTS,15.7,Pound Sterling (826),1,15.7,Debit,5.54254E+22,02/02/2019,GLOUCESTER CC
Gloucester City Council,23UE,Financial Services,FS004,Public Transport - Staff,2402,03/01/2019,02/01/2019,Trainline,London,GBR,1445,REDACTED,556*********3063,4112,PASSENGER RAILWAYS,179.5,Pound Sterling (826),1,179.5,Debit,8.51301E+22,02/02/2019,GLOUCESTER CC
Gloucester City Council,23UE,Head of Policy and Resources,MT004,Public Transport - Staff,2402,07/01/2019,04/01/2019,Trainline,London,GBR,1445,REDACTED,556*********3063,4112,PASSENGER RAILWAYS,129.25,Pound Sterling (826),1,129.25,Debit,8.51301E+22,02/02/2019,GLOUCESTER CC
Gloucester City Council,23UE,Head of Policy and Resources,MT004,Conference Fees,553,07/01/2019,04/01/2019,Hotel on Booking.com,Amsterdam,NLD,1017 SG,REDACTED,556*********3063,7011,"LODGING, HOTELS, MOTELS, RESORTS",72,Pound Sterling (826),1,72,Debit,1.52657E+22,02/02/2019,GLOUCESTER CC
Gloucester City Council,23UE,iness Transformation,BI006,General Supplies/Materials,3025,10/01/2019,09/01/2019,AMZN MKTP UK*MB3G60EI4,AMAZON.CO.UK,LUX,,REDACTED,556*********3063,5942,BOOK STORES,15.69,Pound Sterling (826),1,15.69,Debit,8.53892E+22,02/02/2019,GLOUCESTER CC
Gloucester City Council,23UE,Head of Policy and Resources,MT004,Public Transport - Staff,2402,11/01/2019,10/01/2019,Trainline,London,GBR,1445,REDACTED,556*********3063,4112,PASSENGER RAILWAYS,-107.75,Pound Sterling (826),1,-107.75,Credit,8.51301E+22,02/02/2019,GLOUCESTER CC
Gloucester City Council,23UE,Urban Greening Projects,XCUGP,Contract Works/Services,9001,15/01/2019,14/01/2019,ENVIROMENT AGENCY,INTERNET,GBR,PE2 8AG,REDACTED,556*********3063,9399,GOVERNMENT SERVICES NOT ELSEWHERE CLASSIFIED,658.5,Pound Sterling (826),1,658.5,Debit,3.54252E+22,02/02/2019,GLOUCESTER CC
Gloucester City Council,23UE,Financial Services,FS004,Public Transport - Staff,2402,15/01/2019,14/01/2019,Trainline,London,GBR,1445,REDACTED,556*********3063,4112,PASSENGER RAILWAYS,135,Pound Sterling (826),1,135,Debit,8.51301E+22,02/02/2019,GLOUCESTER CC
Gloucester City Council,23UE,Financial Services,FS004,Public Transport - Staff,2402,28/01/2019,25/01/2019,Trainline,London,GBR,1445,REDACTED,556*********3063,4112,PASSENGER RAILWAYS,71.5,Pound Sterling (826),1,71.5,Debit,8.51301E+22,02/02/2019,GLOUCESTER CC
Gloucester City Council,23UE,Civica Admin Charges,BI002,Professional Advice/ConsultantS Fees,3952,28/01/2019,25/01/2019,HMCOURTS-SERVICE.G,1452420100,,GL12ZG,REDACTED,556*********3063,9222,FINES,448.5,Pound Sterling (826),1,448.5,Debit,8.54815E+22,02/02/2019,GLOUCESTER CC
Gloucester City Council,23UE,Civica Admin Charges,BI002,"ICT Software, Licences & Support",3521,30/01/2019,28/01/2019,BLS*BARCODETOOLS,LONDON,,EC2M 4NS,REDACTED,556*********3063,7372,COMPUTER AND DATA PROCESSING SERVICES,519.29,Pound Sterling (826),1,519.29,Debit,8.54815E+22,02/02/2019,GLOUCESTER CC
Gloucester City Council,23UE,Civica Admin Charges,BI002,"ICT Software, Licences & Support",3521,30/01/2019,28/01/2019,BLS*BARCODETOOLS,LONDON,,EC2M 4NS,REDACTED,556*********3063,7372,COMPUTER AND DATA PROCESSING SERVICES,2378.04,Pound Sterling (826),1,2378.04,Debit,8.54815E+22,02/02/2019,GLOUCESTER CC
Gloucester City Council,23UE,Financial Services,FS004,Public Transport - Staff,2402,01/02/2019,31/01/2019,Trainline,London,GBR,1445,REDACTED,556*********3063,4112,PASSENGER RAILWAYS,360,Pound Sterling (826),1,360,Debit,8.51301E+22,02/02/2019,GLOUCESTER CC
